fUST/lending_fUST_20250208
["ID","MTS","AMOUNT","RATE_DAILY","PERIOD"]
[352251805,1739017846926,-4373.29,0.00011506,2]
[352251806,1739017846935,-559.35,0.00011506,2]
[352251807,1739017846944,-500.0,0.00011506,2]
[352251808,1739017846953,-2116.4,0.00011506,2]
[352251809,1739017846963,-500.0,0.00011506,2]
[352251810,1739017846972,-500.0,0.00011506,2]
[352251811,1739017846982,-2222.78,0.00011506,2]
[352251812,1739017846991,-664.27,0.00011506,2]
[352251813,1739017847000,-1238.14,0.00011506,2]
[352251814,1739017847013,-1538.17,0.00011506,2]
[352251815,1739017847022,-500.0,0.00011506,2]
[352251816,1739017847031,-500.0,0.00011506,2]
[352251817,1739017847040,-500.0,0.00011506,2]
[352251818,1739017847050,-500.0,0.00011506,2]
[352251819,1739017847060,-151.0,0.00011506,2]
[352251820,1739017847069,-500.0,0.00011506,2]
[352251821,1739017847078,-227.60640928,0.00011506,2]
[352251822,1739017847090,-2142.8,0.00011506,2]
[352251823,1739017847099,-500.0,0.00011506,2]
[352251824,1739017847108,-1482.54,0.00011506,2]
[352251825,1739017847117,-500.0,0.00011506,2]
[352251826,1739017847126,-151.0,0.00011506,2]
[352251827,1739017847135,-681.13,0.00011506,2]
[352251828,1739017847145,-564.79,0.00011506,2]
[352251829,1739017847154,-856.38,0.00011506,2]
[352251830,1739017847163,-2004.33,0.00011506,2]
[352251831,1739017847172,-369.328182,0.00011506,2]
[352251832,1739017847181,-151.0,0.00011506,2]
[352251833,1739017847190,-500.0,0.00011506,2]
[352251834,1739017847200,-369.328182,0.00011506,2]
[352251835,1739017847209,-500.0,0.00011506,2]
[352251836,1739017847218,-500.0,0.00011506,2]
[352251837,1739017847227,-500.0,0.00011506,2]
[352251838,1739017847235,-500.0,0.00011506,2]
[352251839,1739017847244,-500.0,0.00011506,2]
[352251840,1739017847253,-9384.36,0.00011506,2]
[352251841,1739017847261,-500.0,0.00011506,2]
[352251842,1739017847271,-550.25,0.00011506,2]
[352251843,1739017847280,-500.0,0.00011506,2]
[352251844,1739017847289,-500.0,0.00011506,2]
[352251845,1739017847298,-3582.6,0.00011506,2]
[352251846,1739017847309,-500.0,0.00011506,2]
[352251847,1739017847318,-500.0,0.00011506,2]
[352251848,1739017847327,-500.0,0.00011506,2]
[352251849,1739017847337,-3998.5,0.00011506,2]
[352251850,1739017847347,-896.88,0.00011506,2]
[352251851,1739017847356,-1674.8,0.00011506,2]
[352251852,1739017847366,-4034.27,0.00011506,2]
[352251853,1739017847375,-500.0,0.00011506,2]
[352251854,1739017847386,-500.0,0.00011506,2]
[352251855,1739017847396,-4452.9,0.00011506,2]
[352251856,1739017847405,-15594.14,0.00011506,2]
[352251857,1739017847415,-820.56,0.00011506,2]
[352251858,1739017847424,-1320.74,0.00011506,2]
[352251859,1739017847434,-1676.27,0.00011506,2]
[352251860,1739017847443,-462.27252829,0.00011506,2]
[352251861,1739017847452,-500.0,0.00011506,2]
[352251862,1739017847462,-500.0,0.00011506,2]
[352251863,1739017847472,-1536.9,0.00011506,2]
[352251864,1739017847482,-1100.89,0.00011506,2]
[352251865,1739017847492,-1163.06,0.00011506,2]
[352251866,1739017847502,-500.0,0.00011506,2]
[352251867,1739017847512,-651.17,0.00011506,2]
[352251868,1739017847522,-636.37,0.00011506,2]
[352251869,1739017847532,-500.0,0.00011506,2]
[352251870,1739017847542,-500.0,0.00011506,2]
[352251871,1739017847552,-500.0,0.00011506,2]
[352251872,1739017847563,-500.0,0.00011506,2]
[352251873,1739017847573,-1113.41,0.00011506,2]
[352251874,1739017847582,-500.0,0.00011507,2]
[352251875,1739017847592,-372.0640836,0.00011526,2]
[352251876,1739017847602,-4365.48217213,0.00011543,2]
[352251877,1739017847612,-481.86155144,0.00011576,2]
[352251878,1739017847622,-531.153,0.000116,2]
[352251879,1739017847632,-20000.000001,0.00011614,2]
[352251880,1739017847642,-195.72850719,0.00011642,2]
[352251881,1739017847651,-151.0,0.00011643,2]
[352251882,1739017847664,-151.0,0.00011643,2]
[352251883,1739017847674,-299.864187,0.00011643,2]
[352251884,1739017847684,-299.864187,0.00011643,2]
[352251885,1739017847694,-151.0,0.00011643,2]
[352251886,1739017847703,-271.909526,0.00011643,2]
[352251887,1739017847713,-241.725794,0.00011643,2]
[352251888,1739017847723,-271.909526,0.00011643,2]
[352251889,1739017847733,-500.0,0.00011643,2]
[352251890,1739017847743,-151.0,0.00011643,2]
[352251891,1739017847752,-504.04,0.00011643,2]
[352251892,1739017847762,-500.0,0.00011643,2]
[352251893,1739017847773,-500.0,0.00011643,2]
[352251894,1739017847784,-151.0,0.00011643,2]
[352251895,1739017847794,-151.0,0.00011643,2]
[352251896,1739017847806,-500.0,0.00011643,2]
[352251897,1739017847817,-151.0,0.00011643,2]
[352251898,1739017847827,-595.06454306,0.00011643,2]
[352251899,1739017847838,-151.0,0.00011643,2]
[352251900,1739017847848,-151.0,0.00011643,2]
[352251901,1739017847858,-546.02260628,0.00011643,2]
[352251902,1739017847868,-151.0,0.00011643,2]
[352251903,1739017847878,-545.48,0.00011643,2]
[352251904,1739017847888,-500.0,0.00011643,2]
[352251905,1739017847899,-500.0,0.00011643,2]
[352251906,1739017847910,-151.0,0.00011643,2]
[352251907,1739017848079,-300.174665,0.00011643,2]
[352251908,1739017848090,-622.9,0.00011643,2]
[352251909,1739017848101,-300.174665,0.00011643,2]
[352251910,1739017848112,-500.0,0.00011643,2]
[352251911,1739017848122,-500.0,0.00011643,2]
[352251912,1739017848133,-500.0,0.00011643,2]
[352251913,1739017848143,-500.0,0.00011643,2]
[352251914,1739017848153,-217.397984,0.00011643,2]
[352251915,1739017848165,-1172.82,0.00011643,2]
[352251916,1739017848175,-217.397984,0.00011643,2]
[352251917,1739017848185,-373.479474,0.00011643,2]
[352251918,1739017848195,-1198.4,0.00011643,2]
[352251919,1739017848205,-197.81090178,0.00011643,2]
[352251920,1739017848215,-500.0,0.00011643,2]
[352251921,1739017848224,-373.479474,0.00011643,2]
[352251922,1739017848234,-719.72,0.00011643,2]
[352251923,1739017848244,-500.0,0.00011643,2]
[352251924,1739017848254,-1164.69,0.00011643,2]
[352251925,1739017848264,-500.0,0.00011643,2]
[352251926,1739017848274,-151.0,0.00011643,2]
[352251927,1739017848284,-151.0,0.00011643,2]
[352251928,1739017848295,-506.9,0.00011643,2]
[352251929,1739017848305,-500.0,0.00011643,2]
[352251930,1739017848317,-596.45,0.00011643,2]
[352251931,1739017848327,-1256.34,0.00011643,2]
[352251932,1739017848339,-500.0,0.00011643,2]
[352251933,1739017848350,-500.0,0.00011643,2]
[352251934,1739017848361,-500.0,0.00011643,2]
[352251935,1739017848372,-618.62,0.00011643,2]
[352251936,1739017848382,-890.11,0.00011643,2]
[352251937,1739017848393,-500.0,0.00011643,2]
[352251938,1739017848403,-158.623598,0.00011643,2]
[352251939,1739017848414,-158.623598,0.00011643,2]
[352251940,1739017848424,-801.48,0.00011643,2]
[352251941,1739017848435,-618.27,0.00011643,2]
[352251942,1739017848446,-500.0,0.00011643,2]
[352251943,1739017848456,-500.0,0.00011643,2]
[352251944,1739017848466,-500.0,0.00011643,2]
[352251945,1739017848476,-500.0,0.00011643,2]
[352251946,1739017848485,-500.0,0.00011643,2]
[352251947,1739017848495,-500.0,0.00011643,2]
[352251948,1739017848505,-1129.76,0.00011643,2]
[352251949,1739017848515,-500.0,0.00011643,2]
[352251950,1739017848529,-401.88639281,0.00011643,2]
[352251951,1739017848539,-500.0,0.00011643,2]
[352251952,1739017848548,-500.0,0.00011643,2]
[352251953,1739017848558,-151.0,0.00011643,2]
[352251954,1739017848568,-1343.04,0.00011643,2]
[352251955,1739017848577,-500.0,0.00011643,2]
[352251956,1739017848588,-500.0,0.00011643,2]
[352251957,1739017848597,-1062.89,0.00011643,2]
[352251958,1739017848608,-500.0,0.00011643,2]
[352251959,1739017848618,-500.0,0.00011643,2]
[352251960,1739017848628,-500.0,0.00011643,2]
[352251961,1739017848638,-736.16,0.00011643,2]
[352251962,1739017848648,-742.48,0.00011643,2]
[352251963,1739017848658,-500.0,0.00011643,2]
[352251964,1739017848668,-1195.43,0.00011643,2]
[352251965,1739017848678,-500.0,0.00011643,2]
[352251966,1739017848688,-752.79,0.00011643,2]
[352251967,1739017848698,-1664.85,0.00011643,2]
[352251968,1739017848709,-500.0,0.00011643,2]
[352251969,1739017848720,-535.84,0.00011643,2]
[352251970,1739017848731,-500.0,0.00011643,2]
[352251971,1739017848741,-742.28,0.00011643,2]
[352251972,1739017848751,-500.0,0.00011643,2]
[352251973,1739017848761,-500.0,0.00011643,2]
[352251974,1739017848774,-500.0,0.00011643,2]
[352251975,1739017848784,-1477.8,0.00011643,2]
[352251976,1739017848795,-789.89,0.00011643,2]
[352251977,1739017848804,-219.329014,0.00011643,2]
[352251978,1739017848815,-3040.25,0.00011643,2]
[352251979,1739017848825,-993.204699,0.00011643,2]
[352251980,1739017848835,-219.329014,0.00011643,2]
[352251981,1739017848846,-500.0,0.00011643,2]
[352251982,1739017848857,-993.204699,0.00011643,2]
[352251983,1739017848867,-3881.11,0.00011643,2]
[352251984,1739017848877,-500.0,0.00011643,2]
[352251985,1739017848888,-1742.68,0.00011643,2]
[352251986,1739017848899,-500.0,0.00011643,2]
[352251987,1739017848909,-500.0,0.00011643,2]
[352251988,1739017848919,-500.0,0.00011643,2]
[352251989,1739017848929,-500.0,0.00011643,2]
[352251990,1739017848950,-500.0,0.00011643,2]
[352251991,1739017848962,-17493.96,0.00011643,2]
[352251992,1739017848973,-1286.62,0.00011643,2]
[352251993,1739017848984,-1024.74,0.00011643,2]
[352251994,1739017848995,-500.0,0.00011643,2]
[352251995,1739017849008,-500.0,0.00011643,2]
[352251996,1739017849018,-151.0,0.00011643,2]
[352251997,1739017849029,-500.0,0.00011643,2]
[352251998,1739017849039,-1951.84,0.00011643,2]
[352251999,1739017849051,-5832.43,0.00011643,2]
[352252000,1739017849061,-500.0,0.00011643,2]
[352252001,1739017849072,-500.0,0.00011643,2]
[352252002,1739017849083,-1544.06,0.00011643,2]
[352252003,1739017849093,-48916.37,0.00011643,2]
[352252004,1739017849103,-612.75,0.00011643,2]
[352252005,1739017849113,-151.0,0.00011643,2]
[352252006,1739017849123,-4373.29,0.00011643,2]
[352252007,1739017849133,-559.35,0.00011643,2]
[352252008,1739017849143,-500.0,0.00011643,2]
[352252009,1739017849154,-2116.4,0.00011643,2]
[352252010,1739017849163,-339.18,0.00011643,2]
[352252011,1739017849173,-500.0,0.00011643,2]
[352252012,1739017849183,-2222.78,0.00011643,2]
[352252013,1739017849193,-664.27,0.00011643,2]
[352252014,1739017849203,-1238.14,0.00011643,2]
[352252015,1739017849212,-1538.17,0.00011643,2]
[352252016,1739017849222,-500.0,0.00011643,2]
[352252017,1739017849231,-500.0,0.00011643,2]
[352252018,1739017849241,-500.0,0.00011643,2]
[352252019,1739017849251,-500.0,0.00011643,2]
[352252020,1739017849260,-214.294755,0.00011643,2]
[352252021,1739017849270,-2142.8,0.00011643,2]
[352252022,1739017849281,-500.0,0.00011643,2]
[352252023,1739017849291,-1482.54,0.00011643,2]
[352252024,1739017849300,-500.0,0.00011643,2]
[352252025,1739017849310,-151.0,0.00011643,2]
[352252026,1739017849320,-681.13,0.00011643,2]
[352252027,1739017849331,-564.79,0.00011643,2]
[352252028,1739017849341,-856.38,0.00011643,2]
[352252029,1739017849352,-2004.33,0.00011643,2]
[352252030,1739017849361,-369.328182,0.00011643,2]
[352252031,1739017849371,-151.0,0.00011643,2]
[352252032,1739017849380,-369.328182,0.00011643,2]
[352252033,1739017849390,-500.0,0.00011643,2]
[352252034,1739017849399,-500.0,0.00011643,2]
[352252035,1739017849408,-500.0,0.00011643,2]
[352252036,1739017849419,-500.0,0.00011643,2]
[352252037,1739017849428,-500.0,0.00011643,2]
[352252038,1739017849438,-9384.36,0.00011643,2]
[352252039,1739017849448,-500.0,0.00011643,2]
[352252040,1739017849457,-500.0,0.00011643,2]
[352252041,1739017849467,-3582.6,0.00011643,2]
[352252042,1739017849476,-500.0,0.00011643,2]
[352252043,1739017849486,-500.0,0.00011643,2]
[352252044,1739017849496,-500.0,0.00011643,2]
[352252045,1739017849506,-3998.5,0.00011643,2]
[352252046,1739017849516,-896.88,0.00011643,2]
[352252047,1739017849525,-1674.8,0.00011643,2]
[352252048,1739017849535,-4034.27,0.00011643,2]
[352252049,1739017849545,-500.0,0.00011643,2]
[352252050,1739017849555,-500.0,0.00011643,2]
[352252051,1739017849564,-4452.9,0.00011643,2]
[352252052,1739017849574,-15594.14,0.00011643,2]
[352252053,1739017849584,-820.56,0.00011643,2]
[352252054,1739017849593,-1320.74,0.00011643,2]
[352252055,1739017849603,-1676.27,0.00011643,2]
[352252056,1739017849612,-500.87565422,0.00011643,2]
[352252057,1739017849622,-500.0,0.00011643,2]
[352252058,1739017849632,-1536.9,0.00011643,2]
[352252059,1739017849641,-1100.89,0.00011643,2]
[352252060,1739017849651,-1163.06,0.00011643,2]
[352252061,1739017849661,-500.0,0.00011643,2]
[352252062,1739017849670,-651.17,0.00011643,2]
[352252063,1739017849680,-636.37,0.00011643,2]
[352252064,1739017849689,-500.0,0.00011643,2]
[352252065,1739017849699,-500.0,0.00011643,2]
[352252066,1739017849708,-500.0,0.00011643,2]
[352252067,1739017849718,-1113.41,0.00011643,2]
[352252068,1739017849727,-151.0,0.0001166,2]
[352252069,1739017849737,-151.0,0.0001166,2]
[352252070,1739017849746,-299.864187,0.0001166,2]
[352252071,1739017849755,-299.864187,0.0001166,2]
[352252072,1739017849765,-299.864187,0.0001166,2]
[352252073,1739017849775,-299.864187,0.0001166,2]
[352252074,1739017849785,-271.909526,0.0001166,2]
[352252075,1739017849794,-271.909526,0.0001166,2]
[352252076,1739017849804,-271.909526,0.0001166,2]
[352252077,1739017849813,-271.909526,0.0001166,2]
[352252078,1739017849823,-972.92366906,0.0001166,2]
[352252079,1739017849833,-189.822956,0.00011678,5]
[352252080,1739017849842,-984.72571227,0.000117,2]
[352252081,1739017849851,-23068.46175891,0.000117,2]
[352252082,1739017849860,-155.0,0.00011777,2]
[352252083,1739017849870,-155.01,0.00011777,2]
[352252084,1739017849880,-151.0,0.00011779,2]
[352252085,1739017849890,-253.939372,0.00011779,2]
[352252086,1739017849899,-163.705868,0.00011779,2]
[352252087,1739017849908,-163.705868,0.00011779,2]
[352252088,1739017849919,-151.0,0.00011779,2]
[352252089,1739017849929,-451.639998,0.00011779,2]
[352252090,1739017849939,-451.639998,0.00011779,2]
[352252091,1739017849948,-151.0,0.00011779,2]
[352252092,1739017849958,-241.725794,0.00011779,2]
[352252093,1739017849967,-241.725794,0.00011779,2]
[352252094,1739017849977,-738.404014,0.00011779,2]
[352252095,1739017849987,-738.404014,0.00011779,2]
[352252096,1739017849997,-151.0,0.00011779,2]
[352252097,1739017850008,-491.717401,0.00011779,2]
[352252098,1739017850018,-491.717401,0.00011779,2]
[352252099,1739017850028,-4191.5429661,0.00011779,5]
[352252100,1739017850220,-1477.90999951,0.00011779,5]
[352252101,1739017850946,-500.0,0.00010958,2]
[352252102,1739017850957,-153.5073582,0.00010958,2]
[352252103,1739017850968,-538.47719985,0.00010958,2]
[352252104,1739017851316,-982.500001,0.00010958,2]
[352252105,1739017851337,-188.43544095,0.00010958,2]
[352252106,1739017851347,-500.0,0.00010958,2]
[352252107,1739017851357,-500.0,0.00010958,2]
[352252108,1739017851366,-500.0,0.00010958,2]
[352252109,1739017851375,-500.0,0.00010958,2]
[352252110,1739017851384,-217.68,0.00010959,2]
[352252111,1739017851394,-439.22245439,0.00011095,2]
[352252112,1739017851403,-1862.92,0.00011095,2]
[352252113,1739017851414,-500.0,0.00011095,2]
[352252114,1739017851424,-500.0,0.00011095,2]
[352252115,1739017851434,-500.0,0.00011095,2]
[352252116,1739017851444,-1862.92,0.00011232,2]
[352252117,1739017851453,-427.77171126,0.00011232,2]
[352252118,1739017851647,-500.0,0.00010958,2]
[352252119,1739017851655,-499.55,0.00010958,2]
[352252120,1739017851665,-500.0,0.00011095,2]
[352252121,1739017851674,-72.22828874,0.00011232,2]
[352252122,1739017851683,-436.42171126,0.00011232,2]
[352252123,1739017851694,-63.57828874,0.00011232,2]
[352252124,1739017851703,-500.0,0.00011232,2]
[352252125,1739017851712,-500.0,0.00011232,2]
[352252126,1739017851721,-1008.9147241,0.00011369,2]
[352252178,1739019032168,-361.5630581,9.978e-05,2]
[352252180,1739019032178,-174.74410633,0.00010858,2]
[352252182,1739019032187,-871.28063999,0.00010858,2]
[352252184,1739019032197,-2000.000001,0.000109,2]
[352252185,1739019032206,-300.0,0.00010956,2]
[352252186,1739019032215,-6301.14976844,0.00010957,2]
[352252281,1739019038030,-13698.85023156,0.00010957,2]
[352252284,1739019038040,-500.0,0.00010957,2]
[352252287,1739019038050,-20000.0,0.00010957,2]
[352252290,1739019038059,-500.0,0.00010958,2]
[352252293,1739019038068,-500.46046578,0.00010958,2]
[352252296,1739019038078,-500.0,0.00010958,2]
[352252299,1739019038087,-500.0,0.00010958,2]
[352252302,1739019038096,-500.0,0.00010958,2]
[352252305,1739019038106,-500.0,0.00010958,2]
[352252308,1739019038115,-500.0,0.00010958,2]
[352252312,1739019038124,-500.0,0.00010958,2]
[352252315,1739019038134,-500.80239085,0.00010958,2]
[352252318,1739019038143,-500.0,0.00010958,2]
[352252321,1739019038152,-500.0,0.00010958,2]
[352252324,1739019038161,-500.0,0.00010958,2]
[352252327,1739019038170,-172.24545994,0.00010958,2]
[352252330,1739019038179,-500.0,0.00010958,2]
[352252333,1739019038188,-500.0,0.00010958,2]
[352252336,1739019038198,-571.34,0.00010958,2]
[352252339,1739019038207,-500.0,0.00010958,2]
[352252341,1739019038216,-500.0,0.00010958,2]
[352252345,1739019038227,-500.0,0.00010958,2]
[352252347,1739019038236,-500.0,0.00010958,2]
[352252351,1739019038246,-500.0,0.00010958,2]
[352252354,1739019038256,-500.0,0.00010958,2]
[352252357,1739019038265,-500.0,0.00010958,2]
[352252360,1739019038275,-500.0,0.00010958,2]
[352252363,1739019038284,-500.0,0.00010958,2]
[352252366,1739019038293,-511.92,0.00010958,2]
[352252369,1739019038303,-485.0155381,0.00010958,2]
[352252372,1739019038312,-500.0,0.00010958,2]
[352252375,1739019038321,-500.0,0.00010958,2]
[352252378,1739019038330,-501.59986121,0.00010958,2]
[352252381,1739019038340,-500.0,0.00010958,2]
[352252384,1739019038351,-500.0,0.00010958,2]
[352252387,1739019038360,-561.63,0.00010958,2]
[352252390,1739019038369,-500.0,0.00010958,2]
[352252393,1739019038378,-500.0,0.00010958,2]
[352252396,1739019038391,-466.12527178,0.00010958,2]
[352252399,1739019038400,-500.0,0.00010958,2]
[352252402,1739019038409,-500.0,0.00010958,2]
[352252405,1739019038418,-500.0,0.00010958,2]
[352252442,1739019038599,-162.77288074,0.00010958,2]
[352252444,1739019038608,-500.0,0.00010958,2]
[352252446,1739019038618,-500.0,0.00010958,2]
[352252448,1739019038627,-500.0,0.00010958,2]
[352252450,1739019038636,-500.0,0.00010958,2]
[352252452,1739019038645,-500.0,0.00010958,2]
[352252454,1739019038655,-500.0,0.00010958,2]
[352252456,1739019038664,-500.0,0.00010958,2]
[352252458,1739019038673,-500.0,0.00010958,2]
[352252460,1739019038683,-500.0,0.00010958,2]
[352252462,1739019038692,-500.0,0.00010958,2]
[352252464,1739019038701,-500.0,0.00010958,2]
[352252466,1739019038710,-501.15220094,0.00010958,2]
[352252468,1739019038719,-500.0,0.00010958,2]
[352252470,1739019038728,-500.0,0.00010958,2]
[352252472,1739019038737,-246.24229999,0.00010958,2]
[352252474,1739019038747,-500.0,0.00010958,2]
[352252476,1739019038758,-500.0,0.00010958,2]
[352252478,1739019038774,-404.03019968,0.00010958,2]
[352252480,1739019038784,-500.0,0.00010958,2]
[352252482,1739019038793,-500.0,0.00010958,2]
[352252484,1739019038803,-500.0,0.00010958,2]
[352252486,1739019038813,-500.0,0.00010958,2]
[352252488,1739019038823,-500.0,0.00010958,2]
[352252490,1739019038833,-500.0,0.00010958,2]
[352252492,1739019038842,-500.0,0.00010958,2]
[352252494,1739019038851,-500.0,0.00010958,2]
[352252496,1739019038861,-500.0,0.00010958,2]
[352252498,1739019038870,-500.0,0.00010958,2]
[352252500,1739019038880,-500.0,0.00010958,2]
[352252502,1739019038889,-500.0,0.00010958,2]
[352252504,1739019038898,-500.0,0.00010958,2]
[352252506,1739019038907,-368.67574739,0.00010958,2]
[352252508,1739019038917,-500.0,0.00010958,2]
[352252510,1739019038926,-500.0,0.00010958,2]
[352252512,1739019038935,-500.0,0.00010958,2]
[352252514,1739019038945,-500.0,0.00010958,2]
[352252516,1739019038954,-500.0,0.00010958,2]
[352252518,1739019038963,-500.0,0.00010958,2]
[352252521,1739019038973,-500.0,0.00010958,2]
[352252523,1739019038989,-500.0,0.00010958,2]
[352252525,1739019039000,-500.0,0.00010958,2]
[352252527,1739019039013,-500.0,0.00010958,2]
[352252529,1739019039023,-500.0,0.00010958,2]
[352252531,1739019039033,-500.0,0.00010958,2]
[352252533,1739019039043,-992.82,0.00010958,2]
[352252535,1739019039052,-500.0,0.00010958,2]
[352252537,1739019039062,-500.0,0.00010958,2]
[352252539,1739019039072,-500.0,0.00010958,2]
[352252541,1739019039081,-500.0,0.00010958,2]
[352252543,1739019039091,-624.99243347,0.00010958,2]
[352252545,1739019039100,-500.0,0.00010958,2]
[352252547,1739019039111,-500.0,0.00010958,2]
[352252549,1739019039121,-500.0,0.00010958,2]
[352252551,1739019039130,-500.0,0.00010958,2]
[352252553,1739019039139,-621.83,0.00010958,2]
[352252555,1739019039147,-500.0,0.00010958,2]
[352252557,1739019039157,-927.84,0.00010958,2]
[352252559,1739019039166,-500.0,0.00010958,2]
[352252561,1739019039175,-500.0,0.00010958,2]
[352252563,1739019039186,-576.62971255,0.00010958,2]
[352252565,1739019039195,-500.0,0.00010958,2]
[352252567,1739019039205,-500.0,0.00010958,2]
[352252569,1739019039215,-500.0,0.00010958,2]
[352252571,1739019039224,-500.0,0.00010958,2]
[352252573,1739019039234,-1215.91,0.00010958,2]
[352252575,1739019039244,-501.5379233,0.00010958,2]
[352252578,1739019039253,-448.32153028,0.00010958,2]
[352252580,1739019039262,-1300.94,0.00010958,2]
[352252582,1739019039271,-500.0,0.00010958,2]
[352252584,1739019039281,-739.26,0.00010958,2]
[352252586,1739019039290,-500.0,0.00010958,2]
[352252588,1739019039299,-500.0,0.00010958,2]
[352252590,1739019039309,-500.0,0.00010958,2]
[352252592,1739019039318,-500.0,0.00010958,2]
[352252594,1739019039327,-500.0,0.00010958,2]
[352252596,1739019039336,-658.25,0.00010958,2]
[352252598,1739019039345,-500.0,0.00010958,2]
[352252600,1739019039354,-500.0,0.00010958,2]
[352252602,1739019039363,-526.57,0.00010958,2]
[352252604,1739019039372,-604.22,0.00010958,2]
[352252606,1739019039381,-500.0,0.00010958,2]
[352252608,1739019039392,-500.0,0.00010958,2]
[352252610,1739019039404,-500.0,0.00010958,2]
[352252612,1739019039413,-500.0,0.00010958,2]
[352252613,1739019039422,-500.0,0.00010958,2]
[352252616,1739019039431,-500.0,0.00010958,2]
[352252618,1739019039440,-500.0,0.00010958,2]
[352252620,1739019039449,-959.22,0.00010958,2]
[352252621,1739019039458,-1357.13,0.00010958,2]
[352252624,1739019039469,-500.0,0.00010958,2]
[352252626,1739019039478,-500.0,0.00010958,2]
[352252628,1739019039487,-1203.51,0.00010958,2]
[352252630,1739019039496,-321.09939492,0.00010958,2]
[352252632,1739019039505,-500.0,0.00010958,2]
[352252634,1739019039515,-500.0,0.00010958,2]
[352252636,1739019039524,-782.4,0.00010958,2]
[352252639,1739019039533,-272.9783568,0.00010958,2]
[352252642,1739019039542,-500.0,0.00010958,2]
[352252646,1739019039551,-500.0,0.00010958,2]
[352252649,1739019039561,-500.0,0.00010958,2]
[352252652,1739019039570,-500.0,0.00010958,2]
[352252654,1739019039579,-675.46,0.00010958,2]
[352252656,1739019039589,-500.0,0.00010958,2]
[352252658,1739019039598,-500.0,0.00010958,2]
[352252660,1739019039607,-500.0,0.00010958,2]
[352252662,1739019039616,-500.0,0.00010958,2]
[352252664,1739019039624,-500.0,0.00010958,2]
[352252666,1739019039634,-500.0,0.00010958,2]
[352252668,1739019039643,-500.0,0.00010958,2]
[352252670,1739019039651,-500.0,0.00010958,2]
[352252672,1739019039661,-500.0,0.00010958,2]
[352252675,1739019039670,-500.0,0.00010958,2]
[352252676,1739019039679,-987.21,0.00010958,2]
[352252678,1739019039689,-13643.7,0.00010958,2]
[352252681,1739019039699,-500.0,0.00010958,2]
[352252682,1739019039708,-500.0,0.00010958,2]
[352252685,1739019039718,-500.0,0.00010958,2]
[352252687,1739019039728,-500.0,0.00010958,2]
[352252689,1739019039738,-500.0,0.00010958,2]
[352252690,1739019039748,-500.0,0.00010958,2]
[352252692,1739019039758,-1017.68,0.00010958,2]
[352252695,1739019039767,-3159.46,0.00010958,2]
[352252697,1739019039778,-482.67531648,0.00010958,2]
[352252698,1739019039787,-1177.59,0.00010958,2]
[352252701,1739019039797,-676.36,0.00010958,2]
[352252703,1739019039806,-500.0,0.00010958,2]
[352252704,1739019039815,-500.0,0.00010958,2]
[352252707,1739019039825,-500.0,0.00010958,2]
[352252708,1739019039835,-500.0,0.00010958,2]